fUST/lending_fUST_20240413
["ID","MTS","AMOUNT","RATE_DAILY","PERIOD"]
[322311800,1712946652521,-1000.0,0.00064383,7]
[322311801,1712946652530,-500.0,0.00064383,120]
[322311802,1712946652540,-500.0,0.00064383,120]
[322311803,1712946652550,-500.0,0.00064383,120]
[322311804,1712946652559,-500.0,0.00064383,120]
[322311805,1712946652569,-500.0,0.00064383,120]
[322311806,1712946652578,-500.0,0.00064383,120]
[322311807,1712946652587,-500.0,0.00064383,120]
[322311808,1712946652596,-500.0,0.00064383,120]
[322311809,1712946652606,-1580.67,0.00064383,120]
[322311810,1712946652615,-500.0,0.00064383,120]
[322311811,1712946652625,-500.0,0.00064383,120]
[322311812,1712946652634,-672.54,0.00064383,120]
[322311813,1712946652643,-967.67,0.00064383,120]
[322311814,1712946652653,-500.0,0.00064383,120]
[322311815,1712946652662,-500.0,0.00064383,120]
[322311816,1712946652672,-500.0,0.00064383,120]
[322311817,1712946652681,-500.0,0.00064383,120]
[322311818,1712946652699,-583.46,0.00064383,120]
[322311819,1712946652713,-825.36,0.00064383,120]
[322311820,1712946652722,-325.06792943,0.00064383,120]
[322311821,1712946652732,-500.0,0.00064383,120]
[322311822,1712946652741,-500.0,0.00064383,120]
[322311823,1712946652750,-692.19,0.00064383,120]
[322311824,1712946652758,-9764.35,0.00064383,120]
[322311825,1712946652767,-500.0,0.00064383,120]
[322311826,1712946652776,-768.49,0.00064383,120]
[322311827,1712946652785,-500.0,0.00064383,120]
[322311828,1712946652794,-500.0,0.00064383,120]
[322311829,1712946652805,-4081.51,0.00064383,120]
[322311830,1712946652814,-1638.32,0.00064383,120]
[322311831,1712946652823,-500.0,0.00064383,120]
[322311832,1712946652832,-882.43,0.00064383,120]
[322311833,1712946652841,-500.0,0.00064383,120]
[322311834,1712946652850,-500.0,0.00064383,120]
[322311835,1712946652859,-500.0,0.00064383,120]
[322311836,1712946652868,-500.0,0.00064383,120]
[322311837,1712946652877,-1341.88,0.00064383,120]
[322311838,1712946652886,-500.0,0.00064383,120]
[322311839,1712946652895,-764.13,0.00064383,120]
[322311840,1712946652904,-571.44,0.00064383,120]
[322311841,1712946652913,-764.31,0.00064383,120]
[322311842,1712946652922,-500.0,0.00064383,120]
[322311843,1712946652931,-500.0,0.00064383,120]
[322311844,1712946652940,-500.0,0.00064383,120]
[322311845,1712946652949,-255.04864999,0.00064383,120]
[322311846,1712946652958,-500.0,0.00064383,120]
[322311847,1712946652967,-42534.8,0.00064383,120]
[322311848,1712946652976,-1330.69,0.00064383,120]
[322311849,1712946652986,-500.0,0.00064383,120]
[322311850,1712946652995,-999.85,0.00064383,120]
[322311851,1712946653057,-500.0,0.00064383,120]
[322311852,1712946653067,-2388.35,0.00064383,21]
[322311853,1712946653076,-632.32,0.00064383,120]
[322311854,1712946653086,-500.0,0.00064383,120]
[322311855,1712946653095,-836.51,0.00064383,120]
[322311856,1712946653104,-500.0,0.00064383,120]
[322311857,1712946653113,-500.0,0.00064383,120]
[322311858,1712946653123,-486.955927,0.00064383,120]
[322311859,1712946653132,-500.0,0.00064383,120]
[322311860,1712946653142,-500.0,0.00064383,120]
[322311861,1712946653151,-1562.33,0.00064383,120]
[322311862,1712946653160,-500.0,0.00064383,120]
[322311863,1712946653170,-500.0,0.00064383,120]
[322311864,1712946653182,-4661.12,0.00064383,120]
[322311865,1712946653191,-1079.92,0.00064383,120]
[322311866,1712946653200,-500.0,0.00064383,120]
[322311867,1712946653210,-576.51,0.00064383,120]
[322311868,1712946653219,-3199.42,0.00064383,120]
[322311869,1712946653228,-1244.87,0.00064383,120]
[322311870,1712946653238,-500.0,0.00064383,60]
[322311871,1712946653247,-1712.49,0.00064383,120]
[322311872,1712946653258,-500.0,0.00064383,120]
[322311873,1712946653267,-500.0,0.00064383,120]
[322311874,1712946653277,-1581.42,0.00064383,120]
[322311875,1712946653286,-648.67,0.00064383,120]
[322311876,1712946653296,-2178.01,0.00064383,120]
[322311877,1712946653305,-1685.81,0.00064383,120]
[322311878,1712946653314,-500.0,0.00064383,120]
[322311879,1712946653324,-500.0,0.00064383,120]
[322311880,1712946653333,-2151.0,0.00064417,20]
[322311881,1712946653343,-154.51196234,0.00064493,120]
[322311882,1712946653352,-154.51196234,0.00064815,120]
[322311883,1712946653362,-500.0,0.00065753,120]
[322311884,1712946653371,-500.0,0.00065753,120]
[322311885,1712946653382,-500.0,0.00065753,120]
[322311886,1712946653392,-500.0,0.00065753,120]
[322311887,1712946653401,-500.0,0.00065753,120]
[322311888,1712946653410,-500.0,0.00065753,120]
[322311889,1712946653421,-1000.0,0.00065753,120]
[322311890,1712946653431,-1000.0,0.00065753,120]
[322311891,1712946653441,-1000.0,0.00065753,120]
[322311892,1712946653450,-382.38551782,0.00065753,120]
[322311893,1712946653460,-500.0,0.00066301,120]
[322311894,1712946653469,-500.0,0.00066301,120]
[322311895,1712946653478,-517.37,0.00066301,120]
[322311896,1712946653487,-1965.93,0.00066301,120]
[322311897,1712946653496,-500.0,0.00066301,120]
[322311898,1712946653506,-630.15355176,0.00066301,120]
[322311899,1712946653515,-550.7,0.00066301,120]
[322311900,1712946653524,-500.0,0.00066301,120]
[322311901,1712946653533,-500.0,0.00066301,120]
[322311902,1712946653543,-500.0,0.00066301,120]
[322311903,1712946653553,-500.0,0.00066301,120]
[322311904,1712946653562,-500.0,0.00066301,120]
[322311905,1712946653571,-500.0,0.00066301,120]
[322311906,1712946653582,-1000.0,0.00066301,7]
[322311907,1712946653591,-504.00000043,0.00066301,120]
[322311908,1712946653600,-500.0,0.00066301,120]
[322311909,1712946653609,-500.0,0.00066301,120]
[322311910,1712946653618,-500.0,0.00066301,120]
[322311911,1712946653627,-500.0,0.00066301,120]
[322311913,1712946653638,-170.13465865,0.00066301,120]
[322311914,1712946653647,-1580.67,0.00066301,120]
[322311915,1712946653656,-503.85222214,0.00066301,120]
[322311916,1712946653665,-500.0,0.00066301,120]
[322311917,1712946653674,-672.54,0.00066301,120]
[322311918,1712946653683,-967.67,0.00066301,120]
[322311919,1712946653691,-500.0,0.00066301,120]
[322311920,1712946653701,-500.0,0.00066301,120]
[322311921,1712946653710,-500.0,0.00066301,120]
[322311922,1712946653719,-583.46,0.00066301,120]
[322311923,1712946653727,-825.36,0.00066301,120]
[322311924,1712946653737,-500.0,0.00066301,120]
[322311925,1712946653746,-500.0,0.00066301,120]
[322311926,1712946653754,-692.19,0.00066301,120]
[322311927,1712946653763,-9764.35,0.00066301,120]
[322311928,1712946653773,-581.07621752,0.00066301,120]
[322311929,1712946653782,-768.49,0.00066301,120]
[322311930,1712946653791,-610.88439837,0.00066301,120]
[322311931,1712946653802,-500.0,0.00066301,120]
[322311932,1712946653811,-4081.51,0.00066301,120]
[322311933,1712946653820,-1638.32,0.00066301,120]
[322311934,1712946653829,-500.0,0.00066301,120]
[322311935,1712946653838,-882.43,0.00066301,120]
[322311936,1712946653847,-500.0,0.00066301,120]
[322311937,1712946653857,-500.0,0.00066301,120]
[322311938,1712946653866,-500.0,0.00066301,120]
[322311939,1712946653875,-500.0,0.00066301,120]
[322311940,1712946653887,-1341.88,0.00066301,120]
[322311941,1712946653896,-500.0,0.00066301,120]
[322311942,1712946653905,-764.13,0.00066301,120]
[322311943,1712946653915,-500.0,0.00066301,120]
[322311944,1712946653933,-571.44,0.00066301,120]
[322311945,1712946653942,-764.31,0.00066301,120]
[322311946,1712946653952,-639.418399,0.00066301,120]
[322311947,1712946653961,-500.0,0.00066301,120]
[322311948,1712946653974,-639.418399,0.00066301,120]
[322311949,1712946653983,-500.0,0.00066301,120]
[322311950,1712946654038,-500.0,0.00066301,120]
[322311951,1712946654051,-15646.50191673,0.00066301,120]
[322311952,1712946654259,-2176.0,0.00040129,2]
[322311953,1712946654268,-2176.0,0.00040999,2]
[322311954,1712946654277,-2176.0,0.00040999,2]
[322311955,1712946654286,-2176.0,0.00040999,2]
[322311956,1712946654295,-2176.0,0.00040999,2]
[322311957,1712946654304,-500.0,0.00054794,120]
[322311958,1712946654313,-500.0,0.00054794,120]
[322311959,1712946654326,-500.0,0.00054794,120]
[322311960,1712946654335,-670.77193449,0.00054795,120]
[322311961,1712946654344,-670.77193449,0.00054795,120]
[322311962,1712946654354,-671.27,0.00054795,120]
[322311963,1712946654363,-500.0,0.00056712,120]
[322311964,1712946654372,-1023.54679598,0.00066301,120]
[322311965,1712946654675,-201.76675726,0.0004,2]
[322311966,1712946654694,-500.0,0.00054794,120]
[322311967,1712946654713,-500.0,0.00054794,120]
[322311968,1712946654727,-500.0,0.00054794,120]
[322311969,1712946654740,-500.0,0.00054794,120]
[322311970,1712946654756,-500.0,0.00056712,120]
[322311971,1712946654770,-500.0,0.0005863,120]
[322311972,1712946654784,-500.0,0.00060547,120]
[322311973,1712946654798,-500.0,0.00062465,120]
[322311974,1712946654812,-25864.75128729,0.00066301,120]
[322311975,1712946654826,-1330.69,0.00066301,120]
[322311976,1712946654840,-500.0,0.00066301,120]
[322311977,1712946654854,-999.85,0.00066301,120]
[322311978,1712946654867,-500.0,0.00066301,120]
[322311979,1712946654881,-2388.35,0.00066301,21]
[322311980,1712946654891,-632.32,0.00066301,120]
[322311981,1712946654900,-500.0,0.00066301,120]
[322311982,1712946654910,-836.51,0.00066301,120]
[322311983,1712946654919,-500.0,0.00066301,120]
[322311984,1712946654928,-500.0,0.00066301,120]
[322311985,1712946654937,-502.41732044,0.00066301,120]
[322311986,1712946654946,-606.67,0.00066301,120]
[322311987,1712946654955,-1562.33,0.00066301,120]
[322311988,1712946654965,-151.0,0.00066301,14]
[322311989,1712946654974,-500.0,0.00066301,120]
[322311990,1712946654983,-151.0,0.00066301,14]
[322311991,1712946654993,-151.0,0.00066301,120]
[322311992,1712946655002,-4661.12,0.00066301,120]
[322311993,1712946655012,-1079.92,0.00066301,120]
[322311994,1712946655021,-206.709278,0.00066301,120]
[322311995,1712946655030,-500.0,0.00066301,120]
[322311996,1712946655040,-151.0,0.00066301,120]
[322311997,1712946655049,-576.51,0.00066301,120]
[322311998,1712946655058,-3199.42,0.00066301,120]
[322311999,1712946655067,-1244.87,0.00066301,120]
[322312000,1712946655265,-500.0,0.00066301,60]
[322312001,1712946655275,-1712.49,0.00066301,120]
[322312002,1712946655284,-500.0,0.00066301,120]
[322312003,1712946655295,-500.0,0.00066301,120]
[322312004,1712946655305,-1581.42,0.00066301,120]
[322312005,1712946655315,-648.67,0.00066301,120]
[322312006,1712946655324,-2178.01,0.00066301,120]
[322312007,1712946655334,-1685.81,0.00066301,120]
[322312008,1712946655343,-500.0,0.00066301,120]
[322312009,1712946655352,-285.20510678,0.000669,120]
[322312010,1712946655361,-153.80479128,0.00067549,120]
[322312011,1712946655371,-262.0,0.00068,120]
[322312012,1712946655380,-6754.20342526,0.00068151,40]
[322312013,1712946655389,-500.0,0.00068219,120]
[322312014,1712946655398,-500.0,0.00068219,120]
[322312015,1712946655408,-517.37,0.00068219,120]
[322312016,1712946655417,-1965.93,0.00068219,120]
[322312017,1712946655426,-381.8487186,0.00068219,120]
[322312018,1712946655435,-550.7,0.00068219,120]
[322312019,1712946655444,-500.0,0.00068219,120]
[322312020,1712946655454,-500.0,0.00068219,120]
[322312021,1712946655463,-500.0,0.00068219,120]
[322312022,1712946655472,-500.0,0.00068219,120]
[322312023,1712946655480,-500.0,0.00068219,120]
[322312024,1712946655490,-500.0,0.00068219,120]
[322312026,1712946655499,-1000.0,0.00068219,7]
[322312027,1712946655508,-500.0,0.00068219,120]
[322312028,1712946655516,-500.0,0.00068219,120]
[322312029,1712946655526,-500.0,0.00068219,120]
[322312030,1712946655535,-500.0,0.00068219,120]
[322312031,1712946655544,-1580.67,0.00068219,120]
[322312033,1712946655556,-500.0,0.00068219,120]
[322312034,1712946655565,-672.54,0.00068219,120]
[322312035,1712946655575,-967.67,0.00068219,120]
[322312036,1712946655584,-500.0,0.00068219,120]
[322312037,1712946655593,-500.0,0.00068219,120]
[322312038,1712946655602,-500.0,0.00068219,120]
[322312039,1712946655612,-583.46,0.00068219,120]
[322312040,1712946655622,-825.36,0.00068219,120]
[322312041,1712946655632,-500.0,0.00068219,120]
[322312042,1712946655641,-500.0,0.00068219,120]
[322312043,1712946655650,-692.19,0.00068219,120]
[322312044,1712946655659,-9764.35,0.00068219,120]
[322312045,1712946655669,-500.0,0.00068219,120]
[322312046,1712946655697,-500.0,0.00068219,120]
[322312047,1712946655706,-882.43,0.00068219,120]
[322312048,1712946655715,-500.0,0.00068219,120]
[322312049,1712946655724,-500.0,0.00068219,120]
[322312050,1712946655733,-500.0,0.00068219,120]
[322312051,1712946655742,-1341.88,0.00068219,120]
[322312052,1712946655751,-500.0,0.00068219,120]
[322312053,1712946655761,-764.13,0.00068219,120]
[322312054,1712946655770,-500.0,0.00068219,120]
[322312055,1712946655780,-571.44,0.00068219,120]
[322312056,1712946655789,-764.31,0.00068219,120]
[322312057,1712946655798,-500.0,0.00068219,120]
[322312058,1712946655808,-552.601282,0.00068219,120]
[322312059,1712946655817,-500.0,0.00068219,120]
[322312060,1712946655827,-42534.8,0.00068219,120]
[322312061,1712946655837,-1330.69,0.00068219,120]
[322312062,1712946655847,-500.0,0.00068219,120]
[322312063,1712946655856,-999.85,0.00068219,120]
[322312064,1712946655865,-500.0,0.00068219,120]
[322312065,1712946655874,-2388.35,0.00068219,21]
[322312066,1712946655883,-632.32,0.00068219,120]
[322312067,1712946655893,-836.51,0.00068219,120]
[322312068,1712946655902,-500.0,0.00068219,120]
[322312069,1712946655911,-209.93944351,0.00068219,120]
[322312070,1712946655921,-1562.33,0.00068219,120]
[322312071,1712946655931,-500.0,0.00068219,120]
[322312072,1712946655940,-4661.12,0.00068219,120]
[322312073,1712946655949,-1079.92,0.00068219,120]
[322312074,1712946655958,-500.0,0.00068219,120]
[322312075,1712946655968,-576.51,0.00068219,120]
[322312076,1712946655977,-3199.42,0.00068219,120]
[322312077,1712946655986,-1244.87,0.00068219,120]
[322312078,1712946655996,-1712.49,0.00068219,120]
[322312079,1712946656005,-500.0,0.00068219,120]
[322312080,1712946656014,-500.0,0.00068219,120]
[322312081,1712946656023,-1581.42,0.00068219,120]
[322312082,1712946656033,-648.67,0.00068219,120]
[322312083,1712946656043,-2178.01,0.00068219,120]
[322312084,1712946656052,-1685.81,0.00068219,120]
[322312085,1712946656061,-193.40896316,0.00068219,120]
[322312086,1712946656070,-1407.47707785,0.00068493,120]
[322312087,1712946656080,-500.0,0.00068493,120]
[322312088,1712946656089,-500.0,0.00068493,120]
[322312089,1712946656099,-500.0,0.00068493,120]
[322312090,1712946656108,-500.0,0.00068493,120]
[322312091,1712946656117,-532.90288554,0.00068493,120]
[322312092,1712946656127,-262.0,0.00068767,120]
[322312093,1712946656136,-154.84515485,0.00069,7]
[322312094,1712946656146,-500.0,0.00069508,120]
[322312095,1712946656155,-154.51196241,0.00069873,120]
[322312096,1712946656182,-544.70703,0.000699,120]
[322312097,1712946656201,-150.0,0.00069987,7]
[322312098,1712946656210,-300.0,0.0007,120]
[322312099,1712946656219,-9215.93617162,0.0007,120]
[322312100,1712946656227,-869.75602036,0.0007,60]
[322312101,1712946656237,-150.0,0.0007,120]
[322312102,1712946656245,-151.0,0.0007,120]
[322312103,1712946656255,-151.0,0.0007,120]
[322312104,1712946656264,-500.0,0.00070136,120]
[322312105,1712946656273,-500.0,0.00070136,120]
[322312106,1712946656283,-517.37,0.00070136,120]
[322312107,1712946656292,-1965.93,0.00070136,120]
[322312108,1712946656301,-151.0,0.00070136,120]
[322312109,1712946656310,-550.7,0.00070136,120]
[322312110,1712946656320,-503.36173929,0.00070136,120]
[322312111,1712946656329,-500.0,0.00070136,120]
[322312112,1712946656338,-500.0,0.00070136,120]
[322312113,1712946656347,-500.0,0.00070136,120]
[322312114,1712946656356,-400.0,0.00070136,120]
[322312115,1712946656366,-400.0,0.00070136,120]
[322312116,1712946656375,-500.0,0.00070136,120]
[322312117,1712946656384,-151.0,0.00070136,120]
[322312118,1712946656393,-280.540117,0.00070136,120]
[322312119,1712946656403,-1000.0,0.00070136,7]
[322312120,1712946656412,-500.0,0.00070136,120]
[322312121,1712946656422,-500.0,0.00070136,120]
[322312122,1712946656431,-506.30042054,0.00070136,120]
[322312123,1712946656441,-500.0,0.00070136,120]
[322312124,1712946656450,-1580.67,0.00070136,120]
[322312125,1712946656460,-500.0,0.00070136,120]
[322312126,1712946656469,-672.54,0.00070136,120]
[322312127,1712946656478,-967.67,0.00070136,120]
[322312128,1712946656488,-500.0,0.00070136,120]
[322312129,1712946656497,-270.03480797,0.00070136,120]
[322312130,1712946656507,-500.0,0.00070136,120]
[322312131,1712946656516,-583.46,0.00070136,120]
[322312132,1712946656525,-825.36,0.00070136,120]
[322312133,1712946656538,-500.0,0.00070136,120]
[322312134,1712946656547,-500.0,0.00070136,120]
[322312135,1712946656557,-692.19,0.00070136,120]
[322312136,1712946656566,-9764.35,0.00070136,120]
[322312137,1712946656576,-500.0,0.00070136,120]
[322312138,1712946656585,-500.0,0.00070136,120]
[322312139,1712946656595,-882.43,0.00070136,120]
[322312140,1712946656605,-500.0,0.00070136,120]
[322312141,1712946656617,-500.0,0.00070136,120]
[322312142,1712946656627,-500.0,0.00070136,120]
[322312143,1712946656637,-1341.88,0.00070136,120]
[322312144,1712946656646,-500.0,0.00070136,120]
[322312145,1712946656655,-764.13,0.00070136,120]
[322312146,1712946656665,-500.0,0.00070136,120]
[322312147,1712946656681,-571.44,0.00070136,120]
[322312148,1712946656700,-764.31,0.00070136,120]
[322312149,1712946656710,-500.0,0.00070136,120]
[322312150,1712946656721,-500.0,0.00070136,120]
[322312151,1712946656730,-14161.37228024,0.00070136,120]
[322312658,1712947483808,-209.47630741,0.00024654,5]
[322312689,1712947682893,2392.02772957,0.00024161,2]
[322312691,1712947698893,3550.9,0.00024161,2]
[322312707,1712947790789,394.05834281,0.00022061,2]
[322312998,1712947833186,-500.0,0.00024651,2]
[322313000,1712947833196,-467.23792428,0.00024652,2]
[322313003,1712947833205,-1920.25404902,0.00024654,2]
[322313006,1712947833215,-394.05834281,0.00027061,2]
[322313009,1712947833224,-832.73219802,0.00027095,2]
[322313012,1712947833236,-1156.34310131,0.00027095,2]
[322313014,1712947833245,-159.91464813,0.00027196,2]
[322313017,1712947833255,-3206.53886997,0.00027296,2]
[322313020,1712947833267,-146.15241149,0.00027296,2]
[322313023,1712947833281,-353.84570033,0.00027297,3]
[322313027,1712947833290,-300.0,0.00027392,2]
[322313029,1712947833299,-300.0,0.00027392,2]
[322313030,1712947833309,-192.57833783,0.00027393,2]
[322313032,1712947833318,-326.58964384,0.00027393,2]
[322313034,1712947833327,-5786.1213342,0.00027393,2]
[322313035,1712947833337,-1878.29113948,0.00027393,2]
[322313037,1712947833346,-211.55365242,0.00027393,2]
[322313039,1712947833356,-1145.27584088,0.00027393,2]
[322313041,1712947833365,-306.54057466,0.00027394,7]
[322313043,1712947833374,-3738.27761337,0.00027394,2]
[322313045,1712947833384,-18104.22610287,0.00027395,2]
[322313046,1712947833393,-230.049489,0.00027397,2]
[322313048,1712947833402,-160.410651,0.00027397,2]
[322313051,1712947833423,-166.666666,0.00027874,2]
[322313053,1712947833434,-213.526047,0.00028433,2]
[322313055,1712947833444,-420.0,0.00029602,2]
[322313057,1712947833453,-166.666666,0.00029773,2]
[322313059,1712947833464,-420.0,0.00030131,2]
[322313061,1712947833473,-2000.0,0.000315,2]
[322313064,1712947833484,-2000.0,0.0003151,2]
[322313066,1712947833494,-2000.0,0.0003152,2]
[322313068,1712947833505,-2000.0,0.0003153,2]
[322313070,1712947833515,-2000.0,0.0003154,2]
[322313072,1712947833529,-2528.261702,0.0003155,2]
[322313074,1712947833539,-166.666666,0.00031673,2]
[322313076,1712947833550,-587.0,0.0003199,2]
[322313078,1712947833560,-8619.47588297,0.00032999,2]
[322313080,1712947833570,-587.0,0.00033145,2]
[322313082,1712947833580,-230.049489,0.00033165,2]
[322313084,1712947833589,-1651.3265,0.00034138,30]
[322313086,1712947833599,-325.0,0.00034571,2]
[322313088,1712947833609,-500.0,0.00034999,7]
[322313090,1712947833618,-166.96720792,0.00034999,7]
[322313092,1712947833628,-6756.95175264,0.00035,30]
[322313094,1712947833638,-2537.75146993,0.00035616,120]
[322313096,1712947833651,-441.67168954,0.00035616,120]
[322313099,1712947833662,-626.86385753,0.00035616,120]
[322313101,1712947833672,-373.13614247,0.00036459,2]
[322313103,1712947833684,-449.86385753,0.00036459,2]
[322313105,1712947833694,-2044.91142934,0.00037,2]
[322313107,1712947833703,-925.5318754,0.00037997,4]
[322313109,1712947833713,-209.5471981,0.00037997,4]
[322313111,1712947833722,-249.826997,0.000382,26]
[322313113,1712947833732,-230.049489,0.00038933,2]
[322313115,1712947833742,-150.87929656,0.00039019,2]
[322313117,1712947833751,-250.29064748,0.00039019,2]
[322313119,1712947833761,-160.410651,0.00039574,2]
[322313121,1712947833770,-4817.1878515,0.00039597,4]
[322313123,1712947833782,-301.75859313,0.00039675,4]
[322313125,1712947833792,-1165.75148064,0.00039897,2]
[322313127,1712947833801,-461.90478744,0.000399,2]
[322313129,1712947833812,-155.15522819,0.00039997,4]
[322313131,1712947833826,-338.28084018,0.00039997,4]
[322313134,1712947833836,-225.5768185,0.00039997,4]
[322313136,1712947833846,-240.81178809,0.00039997,4]
[322313138,1712947833856,-154.93802479,0.00039997,4]
[322313140,1712947833869,-154.99119334,0.00039997,4]
[322313142,1712947833880,-285.13195279,0.00039997,4]
[322313144,1712947833893,-1806.687265,0.00039997,4]
[322313146,1712947833903,-596.82555203,0.00039997,2]
[322313148,1712947833912,-3260.88129171,0.00039997,4]
[322313150,1712947833922,-283.87772596,0.00039997,4]
[322313152,1712947833932,-215.764455,0.00039997,4]
[322313154,1712947833942,-279.09025491,0.00039997,4]
[322313156,1712947833951,-675.98060973,0.00039997,4]
[322313158,1712947833961,-241.11331488,0.00039997,2]
[322313160,1712947833970,-624.51294238,0.00039997,4]
[322313162,1712947833983,-2029.35454976,0.00039997,4]
[322313164,1712947833992,-173.67326272,0.00039997,4]
[322313166,1712947834002,-603.90560033,0.00039997,2]
[322313168,1712947834012,-241.96307711,0.00039997,4]
[322313169,1712947834021,-155.21758575,0.00039997,4]
[322313172,1712947834035,-430.88976759,0.00039997,4]
[322313174,1712947834044,-271.8195425,0.00039997,4]
[322313176,1712947834053,-669.96677047,0.00039997,4]
[322313178,1712947834063,-155.45139245,0.00039997,4]
[322313180,1712947834073,-325.0890793,0.00039997,4]
[322313181,1712947834083,-2842.67125649,0.00039997,7]
[322313183,1712947834093,-500.0,0.00039998,31]
[322313186,1712947834104,-500.0,0.00039998,31]
[322313188,1712947834115,-542.8402564,0.00039998,31]
[322313190,1712947834125,-486.01180665,0.00039998,31]
[322313192,1712947834135,-500.0,0.00039998,31]
[322313194,1712947834144,-383.02521342,0.00039998,31]
[322313196,1712947834154,-25565.38742748,0.00039999,2]
[322313198,1712947834167,-268.82998816,0.00039999,2]
[322313200,1712947834179,-645.99036941,0.00039999,2]
[322313496,1712947838676,-938.25,0.00039999,2]
[322313549,1712947839211,-264.57194948,0.00039999,2]
[322313554,1712947839227,-5673.03038247,0.00039999,2]
[322313557,1712947839239,-1406.99083387,0.0004,4]
[322313560,1712947839251,-1152.0,0.00040105,3]
[322313563,1712947839263,-603.51718625,0.00040342,7]
[322313566,1712947839274,-154.31330905,0.0004072,30]
[322313568,1712947839286,-154.31330905,0.00040752,30]
[322313571,1712947839297,-154.31330905,0.00040969,30]
[322313574,1712947839308,-1061.56557096,0.00041,4]
[322313577,1712947839319,-2000.0,0.00041,30]
[322313580,1712947839330,-2000.0,0.0004101,30]
[322313582,1712947839342,-166.86043165,0.0004102,4]
[322313584,1712947839351,-2000.0,0.0004102,30]
[322313586,1712947839361,-2170.605459,0.0004103,30]
[322313588,1712947839372,-177.6270052,0.00041096,2]
[322313590,1712947839382,-1233.0255336,0.00041096,7]
[322313592,1712947839392,-154.10451123,0.00041268,30]
[322313595,1712947839402,-1207.0343725,0.00041363,30]
[322313598,1712947839412,-3606.287017,0.00041553,120]
[322313601,1712947839423,-154.31330905,0.00042917,30]
[322313603,1712947839432,-166.25855229,0.00043546,30]
[322313606,1712947839442,-461.90478741,0.00043599,2]
[322313608,1712947839452,-9086.4013576,0.00043836,2]
[322313610,1712947839462,-154.31330905,0.00043987,30]
[322313611,1712947839472,-1613.0,0.00044116,3]
[322313613,1712947839482,-230.049489,0.00044701,2]
[322313615,1712947839492,-10653.96560217,0.00045,120]
[322313617,1712947839502,-153.0,0.00045101,2]
[322313620,1712947839512,-153.0,0.00045101,2]
[322313623,1712947839521,-154.31330905,0.0004564,30]
[322313627,1712947839532,-154.84515485,0.000459,4]
[322313629,1712947839543,-157.08508369,0.00047087,30]
[322313631,1712947839553,-157.08508369,0.00047161,30]
[322313634,1712947839563,-461.90478741,0.00047297,2]
[322313637,1712947839573,-154.31330905,0.00047465,30]
[322313640,1712947839584,-3606.287017,0.00047489,120]
[322313642,1712947839594,-273.95,0.0004793,7]
[322313644,1712947839605,-222.97890748,0.0004837,30]
[322313664,1712947839723,-2258.0,0.00048527,3]
[322313666,1712947839734,-1434.34,0.000487,7]
[322313668,1712947839745,-220.0230752,0.00049,120]
[322313671,1712947839759,-3153.6978647,0.00049,120]
[322313673,1712947839770,-2000.0,0.00049,68]
[322313675,1712947839783,-23837.91723754,0.0004901,61]
[322313677,1712947839793,-2902.363275,0.0004901,68]
[322313679,1712947839803,-154.31330905,0.00049569,30]
[322313681,1712947839814,-154.84515485,0.0005,30]
[322313683,1712947839826,-955.53105104,0.0005,60]
[322313685,1712947839835,-151.0,0.0005,120]